[Event "44th Chess Olympiad Women 2022"]
[Site "Chennai"]
[Date "2022.08.05"]
[Round "7.7"]
[White "Avramidou, Anastasia"]
[Black "Soumya, Swaminathan"]
[Result "1-0"]
[WhiteElo "2274"]
[BlackElo "2335"]
[Annotator "TA"]
[PlyCount "91"]
[EventDate "2022.??.??"]
[TimeControl "60"]

{[%evp 9,91,32,31,16,16,20,15,20,7,11,25,42,31,35,39,25,49,36,34,38,60,20,27,
-10,-6,-9,-6,-39,-33,-38,-65,-62,-56,-56,-61,-60,-64,-83,-36,-6,0,0,0,0,37,48,
318,325,306,314,888,802,1499,1464,29988,29989,29989,439,384,402,995,881,965,
874,866,855,1104,626,604,590,626,626,626,626,626,626,623,607,626,620,604,604,
556,542]} 1. d4 {[%emt 0:00:04]} Nf6 {[%emt 0:00:03]} 2. c4 {[%emt 0:00:07]} g6
{[%emt 0:00:03]} 3. h4 {[%emt 0:00:08]} Bg7 {[%emt 0:00:48]} 4. Nc3 {[%emt 0:
00:00]} d6 {[%emt 0:00:18]} 5. e4 {[%emt 0:00:17]} Nc6 {[%emt 0:06:12]} 6. d5 {
[%emt 0:06:22] E60: King's Indian: Unusual lines and Fianchetto Variation
without Nc3.} Ne5 {[%emt 0:00:06]} 7. Be2 {[%emt 0:00:11]} h5 {[%emt 0:21:51]}
8. Nh3 {[%emt 0:00:50] The position is equal.} c6 {[%emt 0:01:09]} 9. Ng5 {
[%emt 0:07:38] [#]} Bg4 $146 {[%emt 0:18:44]} ({Predecessor:} 9... O-O 10. O-O
Bd7 11. Bf4 Nfg4 12. Qd2 Rc8 13. Rac1 cxd5 14. Nxd5 e6 15. Ne3 Qf6 {1-0 (64)
Varga,Z (2394)-Rathanvel,V (2477) Budapest 2022}) 10. f3 {[%emt 0:02:38]} Bd7 {
[%emt 0:00:03]} 11. Be3 {[%emt 0:00:17]} a6 {[%emt 0:12:16]} 12. O-O {[%emt 0:
00:00]} cxd5 {[%emt 0:00:48]} 13. cxd5 {[%emt 0:00:15]} b5 {[%emt 0:00:11]
[%cal Yb7b5,Yb5b4]} 14. Bd4 {[%emt 0:05:30] aiming for f4.} Qb8 {[%emt 0:01:52]
} 15. Qe1 {[%emt 0:28:46]} O-O {[%emt 0:05:23][%cal Ye8g8,Yg8g7,Yg7h7]} 16. Rd1
{[%emt 0:03:54]} b4 {[%emt 0:05:46]} 17. Nb1 {[%emt 0:00:00]} Bb5 {[%emt 0:00:
10]} 18. f4 {[%emt 0:09:47]} Neg4 {[%emt 0:01:28][%cal Yf6e4]} 19. f5 {[%emt 0:
00:55]} Nh7 {[%emt 0:18:27]} 20. Bxg7 {[%emt 0:14:36]} Kxg7 {[%emt 0:00:06]}
21. Nxh7 {[%emt 0:01:46]} Qb6+ {[%emt 0:01:57]} (21... Kxh7 22. fxg6+ fxg6 23.
Rxf8 Qxf8 24. Bxg4 hxg4 25. Qxb4 $11) 22. Kh1 {[%emt 0:00:00]} Kxh7 {[%emt 0:
00:05]} 23. Rf3 {[%emt 0:02:46]} (23. fxg6+ $2 fxg6 24. Bxb5 (24. Rxf8 $2 Rxf8
25. Bxg4 Rf1+ 26. Qxf1 Bxf1 $19) 24... axb5 25. Rxf8 Rxf8 $19) 23... a5 {
[%emt 0:01:19]} ({Better is} 23... Ne5 $17 {And now ... Bxe2 would win.} 24.
Rb3 Bxe2 25. Qxe2 Rac8) 24. Nd2 $15 {[%emt 0:01:58][%cal Yb1d2,Yd2b3,Yb3d4,
Yd4f5]} Rac8 {[%emt 0:02:17]} 25. Bxb5 {[%emt 0:00:00]} Qxb5 {[%emt 0:00:02]}
26. Nb3 {[%emt 0:00:06]} Qb6 {[%emt 0:01:29]} 27. Nd4 {[%emt 0:00:20]} Rc4 $2 {
[%emt 0:00:21] Black cannot hold the game after this.} (27... f6 $14) 28. fxg6+
$18 {[%emt 0:00:10]} Kxg6 {[%emt 0:00:00]} 29. Nf5 {[%emt 0:01:17]} ({Don't
take} 29. Qd2 $6 f6 $18) (29. Ne6 Rg8 30. Qd2 f6 $16) 29... Re8 $2 {[%emt 0:00:
24]} (29... Kh7 30. Qd2 e6) 30. Qe2 {[%emt 0:01:35] Rg3 is the strong threat.}
Qc5 {[%emt 0:01:12]} 31. Rg3 {[%emt 0:00:20] White threatens Qd2 and mate.} ({
Not} 31. Qd2 f6 $16) 31... Rc2 {[%emt 0:00:29] Inhibits Qd2.} 32. Rxg4+ {
[%emt 0:00:07]} Kf6 {[%emt 0:00:10]} 33. Qe3 {[%emt 0:01:05]} Qxe3 {[%emt 0:00:
50]} 34. Nxe3 {[%emt 0:00:06] Really sharp!} Rxb2 {[%emt 0:00:31]} (34... hxg4
$142 35. Nxc2 g3) 35. Rg5 {[%emt 0:00:00] Rf1+ would kill now. White is
clearly winning.} e5 {[%emt 0:00:29]} 36. dxe6 {[%emt 0:00:35]} Kxe6 {[%emt 0:
00:27]} 37. Rxa5 {[%emt 0:00:37]} Rg8 {[%emt 0:00:36]} 38. Rxd6+ {[%emt 0:00:
29]} Kxd6 {[%emt 0:00:09] Endgame KRR-KRN} 39. Nc4+ {[%emt 0:00:03]} Kc6 {
[%emt 0:00:28]} 40. Nxb2 {[%emt 0:00:03] KRN-KR} Rg4 {[%emt 0:00:04]} 41. Rxh5
{[%emt 0:30:48]} Rxe4 {[%emt 0:30:02]} 42. Nd3 {[%emt 0:00:00]} f6 {[%emt 0:00:
00]} 43. Rf5 {[%emt 0:00:00]} Rxh4+ {[%emt 0:00:00]} 44. Kg1 {[%emt 0:00:00]}
Rd4 {[%emt 0:00:00]} 45. Rxf6+ {[%emt 0:00:00]} Kb5 {[%emt 0:00:00]} 46. Rf3 {
[%emt 0:00:00] Weighted Error Value: White=0.38/Black=0.49} 1-0

[Event "44th Chess Olympiad Women 2022"]
[Site "Chennai"]
[Date "2022.08.05"]
[Round "7.7"]
[White "Gomes, Mary Ann"]
[Black "Pavlidou, Ekaterini"]
[Result "0-1"]
[WhiteElo "2324"]
[BlackElo "2138"]
[Annotator "TA"]
[PlyCount "90"]
[EventDate "2022.??.??"]
[TimeControl "60"]

{[%evp 13,90,29,29,0,9,10,29,21,55,50,58,29,81,56,45,41,44,28,77,82,100,91,129,
106,109,118,102,100,106,-119,-111,-203,-205,-215,-223,-221,-222,-279,-278,-280,
-283,-271,-231,-520,-511,-505,-501,-505,-296,-294,-288,-285,-295,-281,-285,
-292,-293,-320,-297,-350,-345,-400,-382,-5498,-5506,-4606,-4179,-29963,-12829,
-29965,-29965,-29966,-29964,-29975,-29976,-29979,-29980,-29980,-29976]} 1. e4 {
[%emt 0:00:04]} c5 {[%emt 0:00:02]} 2. Nf3 {[%emt 0:00:05]} d6 {[%emt 0:00:02]}
3. d4 {[%emt 0:00:05]} cxd4 {[%emt 0:00:03]} 4. Nxd4 {[%emt 0:00:05]} Nf6 {
[%emt 0:00:04]} 5. Nc3 {[%emt 0:00:12]} Nc6 {[%emt 0:00:03]} 6. Bg5 {[%emt 0:
00:00]} e6 {[%emt 0:00:05]} 7. Bb5 {[%emt 0:00:22]} Bd7 {[%emt 0:00:04]} 8. Qd3
{[%emt 0:00:20] now scores much better than the old 8.Bxc6. B62: Sicilian:
Richter-Rauzer: 6...e6: Unusual White 7th moves.} Be7 {[%emt 0:07:17]} 9. O-O-O
{[%emt 0:00:52]} h6 {[%emt 0:06:30]} 10. Bh4 {[%emt 0:01:54] White has an edge.
} a6 {[%emt 0:09:17]} 11. Bxc6 {[%emt 0:03:42]} bxc6 {[%emt 0:00:20]} 12. Nb3 {
[%emt 0:02:15] [#]} g5 $146 {[%emt 0:18:14]} (12... a5 $11) ({Predecessor:} 
12... a5 13. a4 e5 14. Bxf6 gxf6 15. Nd2 Qc7 16. Nc4 Rd8 17. Nxd6+ Kf8 18. Qf3
Be6 {0-1 (53) Dionisi,T (2410)-Dourerassou,J (2444) Chartres 2022}) 13. e5 {
[%emt 0:20:35]} gxh4 {[%emt 0:10:30]} 14. exf6 {[%emt 0:00:16]} Bf8 {[%emt 0:
00:00]} 15. Qd4 {[%emt 0:05:32]} c5 {[%emt 0:08:24]} (15... a5 $11) 16. Qxh4
$16 {[%emt 0:04:18]} Qb6 {[%emt 0:00:14]} 17. Rhe1 {[%emt 0:04:40] Black must
now prevent Nd5.} O-O-O {[%emt 0:05:21]} 18. Qh5 {[%emt 0:07:37]} Be8 {[%emt 0:
00:00]} 19. f4 $1 {[%emt 0:01:41]} Rg8 {[%emt 0:02:14]} 20. g4 {[%emt 0:04:57]}
d5 {[%emt 0:14:54]} 21. Nxd5 $2 {[%emt 0:25:07]} exd5 $17 {[%emt 0:00:56]
White is now going downhill.} 22. Qf5+ {[%emt 0:00:49]} (22. Rxd5 $17 Bd6 23.
Red1) 22... Kb8 $1 $19 {[%emt 0:06:57] ...Bd6 is the strong threat.} 23. Rxd5 {
[%emt 0:01:27]} Bd6 $1 {[%emt 0:00:14][%cal Yf8d6,Yd6f4,Yf4c7] Threatens to
win with ...Bd7.} 24. Red1 {[%emt 0:07:21][%cal Yd5d6] [#]} Bd7 $1 {[%emt 0:03:
24]} 25. Qd3 {[%emt 0:00:56]} Bxf4+ {[%emt 0:01:22]} 26. Kb1 {[%emt 0:00:09] 
[#]} Bc7 $1 {[%emt 0:00:03]} 27. Nxc5 {[%emt 0:02:10]} ({Of course not} 27.
Rxd7 Rxd7 28. Qxd7 Rd8 29. Qxd8+ Bxd8 30. Nxc5 Qxc5 $19) 27... Bb5 {[%emt 0:00:
54]} (27... Bxg4 28. Nxa6+ Kb7 29. Rxd8 (29. Nxc7 $2 Bxd1 30. a3 Rg2 $19) 29...
Rxd8 30. Qe4+ Kxa6 31. Qxg4 $17) 28. Qf5 {[%emt 0:02:04]} (28. Qb3) 28... Rxd5
{[%emt 0:03:06]} 29. Rxd5 {[%emt 0:00:21]} Rg5 {[%emt 0:00:00]} 30. Qf3 {
[%emt 0:01:33]} Bc6 {[%emt 0:02:14] A strong pair of Bishops.} 31. Nd7+ {
[%emt 0:02:26]} Bxd7 {[%emt 0:00:01]} 32. Rxd7 {[%emt 0:00:05]} Qg1+ {[%emt 0:
00:08]} ({Not} 32... Bxh2 33. c3 $11) 33. Rd1 {[%emt 0:00:30]} Qxg4 {[%emt 0:
00:06]} 34. Qd3 {[%emt 0:00:46]} Qe6 {[%emt 0:00:05]} 35. a3 {[%emt 0:00:00]}
Qxf6 {[%emt 0:00:09]} 36. Rf1 {[%emt 0:00:34]} Qe6 {[%emt 0:00:50]} 37. Qh7 {
[%emt 0:00:42]} Rg2 {[%emt 0:01:03]} 38. Qxf7 $2 {[%emt 0:00:37]} (38. h3)
38... Qxf7 {[%emt 0:00:14]} 39. Rxf7 {[%emt 0:00:04]} Rxh2 {[%emt 0:00:03]
Endgame KRB-KR} 40. b4 {[%emt 0:02:03]} h5 {[%emt 0:01:25][%cal Yh6h5,Yh5h4,
Yh4h3,Yh3h2]} 41. Kb2 {[%emt 0:01:20]} h4 {[%emt 0:00:39] Black mates.} 42. Kb3
{[%emt 0:02:17]} h3 {[%emt 0:00:56]} 43. c4 {[%emt 0:00:00]} Rh1 {[%emt 0:00:
23]} 44. b5 {[%emt 0:07:38]} axb5 {[%emt 0:00:26]} 45. cxb5 {[%emt 0:00:29]} h2
{[%emt 0:00:04] Weighted Error Value: White=0.85/ Black=0.10 (very precise)}
0-1

[Event "44th Chess Olympiad Women 2022"]
[Site "Chennai"]
[Date "2022.08.05"]
[Round "7.7"]
[White "Markantonaki, Haritomeni"]
[Black "Divya Deshmukh"]
[Result "0-1"]
[WhiteElo "2154"]
[BlackElo "2319"]
[Annotator "TA"]
[PlyCount "90"]
[EventDate "2022.??.??"]
[TimeControl "60"]

{[%evp 13,90,26,20,12,15,7,8,18,65,39,64,34,84,52,50,52,43,22,89,93,102,100,
114,85,83,108,96,79,94,-147,-162,-231,-230,-205,-229,-220,-212,-295,-278,-294,
-264,-279,-210,-507,-512,-507,-495,-494,-304,-298,-310,-307,-314,-314,-300,
-286,-277,-320,-319,-386,-362,-419,-406,-6242,-5883,-4589,-3962,-29961,-29952,
-29968,-29969,-29970,-29970,-29976,-29977,-29980,-29981,-29981,-29974]} 1. e4 {
[%emt 0:00:04]} c5 {[%emt 0:00:02]} 2. Nf3 {[%emt 0:00:05]} d6 {[%emt 0:00:02]}
3. d4 {[%emt 0:00:05]} cxd4 {[%emt 0:00:03]} 4. Nxd4 {[%emt 0:00:05]} Nf6 {
[%emt 0:00:04]} 5. Nc3 {[%emt 0:00:12]} Nc6 {[%emt 0:00:03]} 6. Bg5 {[%emt 0:
00:00]} e6 {[%emt 0:00:05]} 7. Bb5 {[%emt 0:00:22]} Bd7 {[%emt 0:00:04]} 8. Qd3
{[%emt 0:00:20] now scores much better than the old 8.Bxc6. B62: Sicilian:
Richter-Rauzer: 6...e6: Unusual White 7th moves.} Be7 {[%emt 0:07:17]} 9. O-O-O
{[%emt 0:00:52]} h6 {[%emt 0:06:30]} 10. Bh4 {[%emt 0:01:54] The position is
equal.} a6 {[%emt 0:09:17]} (10... O-O $11 {should be considered.}) 11. Bxc6 {
[%emt 0:03:42]} bxc6 {[%emt 0:00:20]} 12. Nb3 {[%emt 0:02:15] [#]} g5 $146 {
[%emt 0:18:14]} ({Better is} 12... a5 $14) ({Predecessor:} 12... a5 13. a4 e5
14. Bxf6 gxf6 15. Nd2 Qc7 16. Nc4 Rd8 17. Nxd6+ Kf8 18. Qf3 Be6 {0-1 (53)
Dionisi,T (2410)-Dourerassou,J (2444) Chartres 2022}) 13. e5 {[%emt 0:20:35]}
gxh4 {[%emt 0:10:30]} 14. exf6 {[%emt 0:00:16]} Bf8 {[%emt 0:00:02]} 15. Qd4 {
[%emt 0:05:32]} c5 {[%emt 0:08:24]} (15... Rg8 $11 {remains equal.}) 16. Qxh4
$16 {[%emt 0:04:18] Rhe1 is the strong threat.} Qb6 {[%emt 0:00:14]} 17. Rhe1 {
[%emt 0:04:40]} O-O-O {[%emt 0:05:21]} 18. Qh5 {[%emt 0:07:37]} Be8 {[%emt 0:
00:00]} 19. f4 {[%emt 0:01:41]} Rg8 {[%emt 0:02:14]} 20. g4 {[%emt 0:04:57]} d5
{[%emt 0:14:54]} 21. Nxd5 $2 {[%emt 0:25:07]} exd5 $17 {[%emt 0:00:56] Black
converts the advantage convincingly.} 22. Qf5+ {[%emt 0:00:49]} (22. Rxd5 $142
Bd6 23. Red1) 22... Kb8 $1 $19 {[%emt 0:06:57]} 23. Rxd5 {[%emt 0:01:27]} Bd6
$1 {[%emt 0:00:14][%cal Yf8d6,Yd6f4,Yf4c7] Threatens to win with ... Bd7.} 24.
Red1 {[%emt 0:07:21][%cal Yd5d6] [#]} Bd7 $1 {[%emt 0:03:24]} 25. Qd3 {[%emt 0:
00:56]} Bxf4+ {[%emt 0:01:22]} 26. Kb1 {[%emt 0:00:09] [#]} Bc7 $1 {[%emt 0:00:
03]} 27. Nxc5 {[%emt 0:02:10]} ({Much weaker is} 27. Rxd7 Rxd7 28. Qxd7 Rd8 29.
Qxd8+ Bxd8 30. Nxc5 Qxc5 $19) 27... Bb5 {[%emt 0:00:54]} ({Avoid the trap} 
27... Bxg4 $2 28. Nxa6+ Kc8 29. Nxc7 Bxd1 30. Qf5+ Kxc7 31. Rc5+ Kb7 32. Rb5
$19) 28. Qf5 {[%emt 0:02:04]} (28. Qe3) 28... Rxd5 {[%emt 0:00:00]} 29. Rxd5 {
[%emt 0:00:21]} Rg5 {[%emt 0:00:40]} 30. Qf3 {[%emt 0:01:33]} Bc6 {[%emt 0:02:
14] This bishop pair is nice.} 31. Nd7+ {[%emt 0:02:26]} Bxd7 {[%emt 0:00:01]}
32. Rxd7 {[%emt 0:00:05]} Qg1+ {[%emt 0:00:08]} ({Weaker is} 32... Bxh2 33. c3
$11) 33. Rd1 {[%emt 0:00:30]} Qxg4 {[%emt 0:00:06]} 34. Qd3 {[%emt 0:00:46]}
Qe6 {[%emt 0:00:05]} 35. a3 {[%emt 0:00:30]} Qxf6 {[%emt 0:00:00]} 36. Rf1 {
[%emt 0:00:34]} Qe6 {[%emt 0:00:50]} 37. Qh7 {[%emt 0:00:42]} Rg2 {[%emt 0:01:
03]} 38. Qxf7 {[%emt 0:00:37]} (38. h3 $142) 38... Qxf7 {[%emt 0:00:00]} 39.
Rxf7 {[%emt 0:00:04]} Rxh2 {[%emt 0:00:03] Endgame And now ...h5 would win.
KRB-KR} 40. b4 {[%emt 0:02:03]} h5 {[%emt 0:01:25][%cal Yh6h5,Yh5h4,Yh4h3,
Yh3h2] Black mates.} 41. Kb2 {[%emt 0:01:20]} h4 {[%emt 0:00:39]} 42. Kb3 {
[%emt 0:02:17]} h3 {[%emt 0:00:56]} 43. c4 {[%emt 0:00:00]} Rh1 {[%emt 0:00:23]
} 44. b5 {[%emt 0:07:38]} axb5 {[%emt 0:00:26]} 45. cxb5 {[%emt 0:00:29]} h2 {
[%emt 0:00:04] Weighted Error Value: White=0.70/ Black=0.11 (very precise)} 0-1

[Event "44th Chess Olympiad Women 2022"]
[Site "Chennai"]
[Date "2022.08.05"]
[Round "7.7"]
[White "Vantika Agrawal"]
[Black "Tsolakidou, Stavroula"]
[Result "0-1"]
[WhiteElo "2371"]
[BlackElo "2362"]
[Annotator "TA"]
[PlyCount "82"]
[EventDate "2022.??.??"]
[TimeControl "60"]

{[%evp 15,82,-13,-7,0,-14,-17,-12,-3,-11,-22,0,0,20,-15,-12,-16,21,-125,-112,
-124,-117,-115,-102,-101,-100,-98,-74,-125,-129,-144,-138,-145,-145,-145,-106,
-168,-100,-228,-99,-142,-147,-185,-177,-201,-152,-152,-149,-154,-146,-194,-159,
-204,-186,-477,-457,-474,-471,-730,-708,-716,-712,-892,-898,-899,-895,-904,
-888,-865,-856]} 1. d4 {[%emt 0:00:16]} Nf6 {[%emt 0:00:10]} 2. c4 {[%emt 0:00:
00]} e6 {[%emt 0:00:08]} 3. Nc3 {[%emt 0:00:21]} Bb4 {[%emt 0:00:39]} 4. e3 {
[%emt 0:00:10]} O-O {[%emt 0:01:46]} 5. Bd3 {[%emt 0:04:15]} d5 {[%emt 0:04:14]
} 6. cxd5 {[%emt 0:00:56]} exd5 {[%emt 0:00:49]} 7. Nge2 {[%emt 0:00:15]} Re8 {
[%emt 0:01:28]} 8. O-O {[%emt 0:00:21]} Bd6 {[%emt 0:01:47]} 9. Bd2 {[%emt 0:
00:00] E48: Nimzo-Indian: Rubinstein: 5 Bd3 d5 including 6 Ne2, but excluding
6 a3.} Nbd7 {[%emt 0:20:50][%cal Yd6h2]} 10. Nf4 {[%emt 0:17:49]} c6 {[%emt 0:
00:00]} 11. Qc2 {[%emt 0:15:34] The position is equal.} Nf8 {[%emt 0:03:30]}
12. f3 {[%emt 0:13:41] [#]} Ne6 $146 {[%emt 0:11:09]} (12... Ng6 $5 {[%cal
Rg6f4]}) ({Predecessor:} 12... Qc7 13. g3 Ne6 14. Kh1 Bd7 15. Rae1 Rac8 16. Re2
a6 17. Nxe6 Bxe6 18. g4 g6 {1-0 (46) Ries,B (2164)-Kesseler,H (1993) Solingen
2016}) 13. Nxe6 {[%emt 0:16:08]} Bxe6 {[%emt 0:00:06]} 14. Ne2 {[%emt 0:06:53]}
Rc8 {[%emt 0:06:11]} 15. b4 {[%emt 0:02:55]} Bb8 {[%emt 0:02:36]} 16. e4 {
[%emt 0:03:10]} (16. Rae1 $11 {remains equal.}) 16... dxe4 $17 {[%emt 0:07:29]}
17. fxe4 {[%emt 0:01:16] Black must now prevent e5.} Bg4 {[%emt 0:00:36]
Threatens to win with ...Bxe2.} 18. Be3 {[%emt 0:05:16]} Bxe2 {[%emt 0:05:13]}
19. Qxe2 {[%emt 0:00:20] Hoping for e5.} Nxe4 {[%emt 0:00:21]} (19... Bxh2+ $2
20. Kxh2 Nxe4 21. Qf3 $18 (21. Qh5 g6 $18)) 20. Qf3 {[%emt 0:01:50]} Nf6 {
[%emt 0:02:39][%cal Yb8h2] Active counter play!} 21. Bf5 {[%emt 0:01:47]} (21.
Qh3 $142 h6 22. Rf3) 21... Rc7 $1 {[%emt 0:02:47]} 22. Rad1 {[%emt 0:00:55] [#]
} Nd5 $1 {[%emt 0:03:39]} 23. Bd2 {[%emt 0:01:51]} g6 {[%emt 0:03:59]} 24. Bc2
{[%emt 0:01:22]} Rd7 {[%emt 0:02:51]} 25. Qh3 {[%emt 0:01:17]} (25. b5 $17 {
is a better defense.}) 25... Bd6 {[%emt 0:00:45]} (25... Bc7 $19 26. Bb3 Re4)
26. Bg5 {[%emt 0:00:47] [#]} Qc8 {[%emt 0:05:37]} (26... f6 $1 $19 {[%cal
Rf6g5] has better winning chances.} 27. Bh4 Bxb4) 27. a3 {[%emt 0:00:39]} Bf8 {
[%emt 0:00:29]} 28. Rd2 {[%emt 0:01:04]} Bg7 {[%emt 0:00:29]} 29. Bd1 {[%emt 0:
00:00]} Rf8 {[%emt 0:03:39]} 30. Bg4 {[%emt 0:00:25]} f5 {[%emt 0:00:04]} 31.
Bd1 {[%emt 0:00:25]} Qe8 {[%emt 0:00:46]} 32. Bc2 {[%emt 0:00:39]} (32. Kh1 $17
{was necessary.}) 32... Rd6 {[%emt 0:00:38][%cal Yd7d6,Yd6e6,Ye6e3]} 33. Qh4 {
[%emt 0:00:32]} Re6 {[%emt 0:00:38][%cal Yf5f4]} 34. Qf2 $2 {[%emt 0:00:00]} (
34. Rdd1) 34... f4 $19 {[%emt 0:02:32] Black is clearly winning.} 35. Qf3 {
[%emt 0:00:27]} Re3 {[%emt 0:00:46]} 36. Qg4 {[%emt 0:00:22]} (36. Qd1 $142
Rxa3 37. Qc1) 36... Re1 {[%emt 0:00:15][%cal Yg7d4] ( -> ...Bxd4+!)} 37. Qf3 {
[%emt 0:00:42]} Qe3+ {[%emt 0:00:18]} 38. Qxe3 {[%emt 0:00:18]} Rxf1+ {[%emt 0:
00:04]} ({Stronger than} 38... fxe3 39. Rxe1 exd2 40. Bxd2 $17 (40. Re4 $2 Nc3
$19)) (38... Rxe3 $2 39. Rf3 $19) 39. Kxf1 {[%emt 0:00:42]} fxe3+ {[%emt 0:00:
04] Discovered Attack} (39... Nxe3+ $2 {loses.} 40. Ke2 $17) 40. Ke1 {[%emt 0:
00:31]} exd2+ {[%emt 0:00:05]} 41. Bxd2 {[%emt 0:30:28]} Bxd4 {[%emt 0:30:05]
Weighted Error Value: White=0.48/Black=0.12 (very precise)} 0-1

[Event "44th Chess Olympiad Women 2022"]
[Site "Chennai"]
[Date "2022.08.05"]
[Round "7.8"]
[White "Garcia Martin, Marta"]
[Black "Pilsova, Karolina"]
[Result "1/2-1/2"]
[WhiteElo "2305"]
[BlackElo "2230"]
[Annotator "ChessBase"]
[PlyCount "128"]
[EventDate "2022.??.??"]
[TimeControl "60"]

1. e4 {[%emt 0:00:03]} e5 {[%emt 0:00:07]} 2. Nf3 {[%emt 0:00:07]} Nc6 {
[%emt 0:00:05]} 3. Bb5 {[%emt 0:00:09]} Nf6 {[%emt 0:00:07]} 4. O-O {[%emt 0:
00:00]} Nxe4 {[%emt 0:00:29]} 5. Re1 {[%emt 0:00:45]} Nd6 {[%emt 0:00:30]} 6.
a4 {[%emt 0:01:08]} Be7 {[%emt 0:14:34]} 7. Nc3 {[%emt 0:00:57]} O-O {[%emt 0:
00:00]} 8. d4 {[%emt 0:00:57]} e4 {[%emt 0:10:29]} 9. Nxe4 {[%emt 0:00:16]}
Nxe4 {[%emt 0:02:00]} 10. Rxe4 {[%emt 0:00:06]} d5 {[%emt 0:00:25]} 11. Re3 {
[%emt 0:04:08]} Bf6 {[%emt 0:06:06]} 12. Bxc6 {[%emt 0:31:48]} bxc6 {[%emt 0:
00:00]} 13. Ne5 {[%emt 0:00:05]} Bd7 {[%emt 0:22:54]} 14. Qh5 {[%emt 0:18:07]}
g6 {[%emt 0:08:02]} 15. Qf3 {[%emt 0:00:28]} Bg7 {[%emt 0:00:42]} 16. Re1 {
[%emt 0:00:43]} f6 {[%emt 0:04:29]} 17. Nd3 {[%emt 0:02:36]} Bf5 {[%emt 0:00:
00]} 18. Bf4 {[%emt 0:02:11]} Bxd3 {[%emt 0:04:35]} 19. Qxd3 {[%emt 0:00:10]}
Qd7 {[%emt 0:00:06]} 20. h3 {[%emt 0:15:28]} Rfb8 {[%emt 0:03:39]} 21. b3 {
[%emt 0:02:56]} Bf8 {[%emt 0:00:14]} 22. Re2 {[%emt 0:06:21]} Bd6 {[%emt 0:00:
00]} 23. Bxd6 {[%emt 0:00:18]} cxd6 {[%emt 0:00:12]} 24. Rae1 {[%emt 0:00:50]}
Re8 {[%emt 0:00:17]} 25. Qg3 {[%emt 0:05:44]} Kf7 {[%emt 0:01:54]} 26. Qh4 {
[%emt 0:00:25]} Kg7 {[%emt 0:02:28]} 27. Qf4 {[%emt 0:06:08]} Rxe2 {[%emt 0:00:
00]} 28. Rxe2 {[%emt 0:00:03]} Re8 {[%emt 0:00:07]} 29. Re3 {[%emt 0:00:43]}
Rxe3 {[%emt 0:02:57]} 30. Qxe3 {[%emt 0:00:04]} Kf7 {[%emt 0:00:10]} 31. Kf1 {
[%emt 0:00:16]} Qf5 {[%emt 0:01:49]} 32. Qc3 {[%emt 0:00:12]} Qd7 {[%emt 0:00:
00]} 33. Ke2 {[%emt 0:00:47]} Qb7 {[%emt 0:02:07]} 34. Kd2 {[%emt 0:01:09]} Qb6
{[%emt 0:00:33]} 35. Qd3 {[%emt 0:00:44]} Qb4+ {[%emt 0:00:55]} 36. Ke2 {
[%emt 0:00:27]} Qb6 {[%emt 0:00:40]} 37. h4 {[%emt 0:00:30]} Qc7 {[%emt 0:00:
00]} 38. h5 {[%emt 0:00:39]} Kg7 {[%emt 0:00:35]} 39. g4 {[%emt 0:00:29]} Qd7 {
[%emt 0:00:28]} 40. Qg3 {[%emt 0:00:32]} Qe6+ {[%emt 0:00:31]} 41. Kd2 {
[%emt 0:30:14]} gxh5 {[%emt 0:11:15]} 42. gxh5+ {[%emt 0:00:00]} Kh6 {[%emt 0:
00:00]} 43. Qf3 {[%emt 0:00:00]} Kg5 {[%emt 0:01:58]} 44. Qd3 {[%emt 0:00:08]}
f5 {[%emt 0:02:32]} 45. Qg3+ {[%emt 0:00:27]} Kxh5 {[%emt 0:04:49]} 46. f4 {
[%emt 0:00:05]} Qf6 {[%emt 0:03:17]} 47. Kd3 {[%emt 0:02:33]} h6 {[%emt 0:00:
00]} 48. Qg8 {[%emt 0:00:28]} Qe7 {[%emt 0:01:19]} 49. Kd2 {[%emt 0:00:22]} Qe4
{[%emt 0:03:52]} 50. Qf7+ {[%emt 0:00:08]} Kg4 {[%emt 0:00:39]} 51. Qg6+ {
[%emt 0:00:54]} Kf3 {[%emt 0:00:51]} 52. Qh5+ {[%emt 0:00:03]} Kf2 {[%emt 0:00:
00]} 53. Qh2+ {[%emt 0:01:01]} Kf1 {[%emt 0:00:12]} 54. Qxh6 {[%emt 0:00:16]}
Qxd4+ {[%emt 0:01:06]} 55. Kc1 {[%emt 0:00:03]} Qa1+ {[%emt 0:00:22]} 56. Kd2 {
[%emt 0:00:04]} Qd4+ {[%emt 0:00:28]} 57. Kc1 {[%emt 0:00:03]} Qa1+ {[%emt 0:
00:00]} 58. Kd2 {[%emt 0:00:04]} Qe1+ {[%emt 0:00:48]} 59. Kd3 {[%emt 0:00:02]}
Qd1+ {[%emt 0:00:35]} 60. Kc3 {[%emt 0:00:26]} Qa1+ {[%emt 0:00:45]} 61. Kd3 {
[%emt 0:01:04]} Qd1+ {[%emt 0:00:10]} 62. Kc3 {[%emt 0:00:04]} Qa1+ {[%emt 0:
00:00]} 63. Kd3 {[%emt 0:00:03]} Qd1+ {[%emt 0:00:17]} 64. Kc3 {[%emt 0:00:03]}
Qa1+ {[%emt 0:00:48]} 1/2-1/2